[Event "Reykjavik Open 2022"]
[Site "Reykjavik"]
[Date "2022.04.08"]
[Round "4.2"]
[White "Yoo, Christopher Woojin"]
[Black "Idani, Pouya"]
[Result "0-1"]
[ECO "B23"]
[WhiteElo "2514"]
[BlackElo "2621"]
[Annotator "RC"]
[PlyCount "132"]
[EventDate "2022.04.06"]
[EventCountry "ISL"]
[SourceTitle "playchess.com"]
[Source "ChessBase"]
[SourceQuality "1"]
[TimeControl "40/5400+30:1800+30"]

1. e4 {[%emt 0:00:09]} c5 {[%emt 0:00:04]} 2. Nc3 {[%emt 0:00:06]} d6 {[%emt 0:00:04]} 3. Bb5+ {[%emt 0:00:08]} Bd7 {[%emt 0:00:04]} 4. Bxd7+ {[%emt 0:00:06]} Qxd7 {[%emt 0:00:04]} 5. d4 {[%emt 0:00:06]} cxd4 {[%emt 0:00:04]} 6. Qxd4 {[%emt 0:00:05]} Nc6 {[%emt 0:00:05]} 7. Qd3 {[%emt 0:00:06]} g6 {[%emt 0:00:31]} 8. Nf3 {[%emt 0:00:39]} Bg7 {[%emt 0:00:05]} 9. O-O {[%emt 0:00:10]} Nf6 {[%emt 0:00:03]} 10. Nd5 {[%emt 0:01:02]} O-O {[%emt 0:00:05]} 11. Bg5 {[%emt 0:00:05]} Ne8 {[%emt 0:00:03]} 12. Rad1 {[%emt 0:00:44]} e6 {[%emt 0:00:10]} 13. Ne3 {[%emt 0:03:36]} h6 {[%emt 0:00:05]} 14. Bh4 {[%emt 0:00:08]} f5 {[%emt 0:00:21]} 15. exf5 {[%emt 0:00:22]} gxf5 {[%emt 0:00:04]} 16. Nc4 {[%emt 0:13:04]} Qf7 {[%emt 0:03:05]} 17. Nxd6 {[%emt 0:03:20]} Nxd6 {[%emt 0:00:04]} 18. Qxd6 {[%emt 0:00:05]} e5 {[%emt 0:00:07]} 19. b4 {[%emt 0:15:30]} Rae8 {[%emt 0:15:05]} 20. b5 {[%emt 0:05:43]} Na5 {[%emt 0:00:13]} 21. Qd5 {[%emt 0:05:48]} Nc4 {[%emt 0:12:06]} 22. Qxf7+ {[%emt 0:04:43]} Rxf7 {[%emt 0:00:14]} 23. Rfe1 {[%emt 0:03:59]} Rc8 {[%emt 0:04:37]} 24. h3 {[%emt 0:04:00]} e4 {[%emt 0:12:25]} 25. Nd4 {[%emt 0:00:24]} Nb2 {[%emt 0:00:45]} 26. Rd2 {[%emt 0:01:07]} Bxd4 {[%emt 0:00:36]} 27. Rxd4 {[%emt 0:00:07]} Rxc2 {[%emt 0:00:02]} 28. f3 {[%emt 0:13:14]} Nd3 {[%emt 0:07:39]} 29. Rf1 {[%emt 0:01:32]} Rg7 {[%emt 0:03:47]} 30. g3 {[%emt 0:02:27]} Nf4 {[%emt 0:03:07]} 31. Rd8+ {[%emt 0:08:52]} Kh7 {[%emt 0:00:47]} 32. Kh1 {[%emt 0:00:04]} Nxh3 {[%emt 0:01:34]} 33. Bf6 {[%emt 0:01:54]} Rxg3 {[%emt 0:05:07]} 34. Rh8+ {[%emt 0:02:11]} Kg6 {[%emt 0:00:08]} 35. Rg8+ {[%emt 0:00:14]} Kxf6 {[%emt 0:00:04]} 36. Rxg3 {[%emt 0:00:04]} Nf2+ {[%emt 0:00:28]} 37. Kg1 {[%emt 0:01:21]} f4 {[%emt 0:01:26]} 38. Rg2 {[%emt 0:01:25]} e3 {[%emt 0:00:10]} 39. b6 {[%emt 0:00:03]} axb6 {[%emt 0:02:31]} 40. Rb1 {[%emt 0:00:00]} Rxa2 {[%emt 0:00:00]} 41. Rh2 {[%emt 0:01:31]} Ke5 {[%emt 0:03:46]} 42. Kf1 {[%emt 0:04:43]} Kd4 {[%emt 0:03:50]} 43. Rb4+ {[%emt 0:03:19]} Kc3 {[%emt 0:01:43]} 44. Rb1 {[%emt 0:01:36]} b5 {[%emt 0:01:15]} 45. Rxb5 {[%emt 0:08:42]} Ra1+ {[%emt 0:00:51]} 46. Kg2 {[%emt 0:00:02]} Nd3 {[%emt 0:01:53]} 47. Kh3 {[%emt 0:00:04]} Nf2+ {[%emt 0:02:49]} 48. Kg2 {[%emt 0:00:48]} e2 {[%emt 0:08:48]} 49. Re5 {[%emt 0:00:41]} e1=Q {[%emt 0:00:03]} 50. Rxe1 {[%emt 0:00:07]} Rxe1 {[%emt 0:00:03]} 51. Kxf2 {[%emt 0:00:08]} Re6 {[%emt 0:00:03]} 52. Rh5 {[%emt 0:00:02]} Rf6 {[%emt 0:00:13]} 53. Rb5 {[%emt 0:01:13]} b6 {[%emt 0:02:34]} 54. Ke2 {[%emt 0:00:11]} Rd6 {[%emt 0:03:59]} 55. Rf5 {[%emt 0:00:39]} Rd2+ {[%emt 0:00:14]} 56. Ke1 {[%emt 0:00:07]} Rd4 {[%emt 0:00:04]} 57. Rb5 {[%emt 0:00:26]} Rb4 {[%emt 0:00:11]} 58. Rd5 {[%emt 0:01:15]} b5 {[%emt 0:00:22]} 59. Ke2 {[%emt 0:03:44]} Rb2+ {[%emt 0:00:47]} 60. Kd1 {[%emt 0:00:05]} Rb1+ {[%emt 0:01:35]} 61. Ke2 {[%emt 0:00:05]} b4 {[%emt 0:00:17]} 62. Rd3+ {[%emt 0:00:15]} Kc4 {[%emt 0:00:14]} 63. Rd6 {[%emt 0:00:04]} b3 {[%emt 0:01:34]} 64. Kd2 {[%emt 0:01:43]} Rh1 {[%emt 0:00:12]} 65. Rc6+ {[%emt 0:00:22]} Kd5 {[%emt 0:00:12]} 66. Rb6 {[%emt 0:00:32]} b2 {[%emt 0:00:11]} 0-1

[Event "Reykjavik Open 2022"]
[Site "Reykjavik"]
[Date "2022.04.08"]
[Round "4.3"]
[White "Gukesh D"]
[Black "Maze, Sebastien"]
[Result "1-0"]
[ECO "D38"]
[WhiteElo "2614"]
[BlackElo "2527"]
[Annotator "RC"]
[PlyCount "91"]
[EventDate "2022.04.06"]
[EventCountry "ISL"]
[SourceTitle "playchess.com"]
[Source "ChessBase"]
[SourceQuality "1"]
[TimeControl "40/5400+30:1800+30"]

1. d4 {[%emt 0:01:01]} Nf6 {[%emt 0:00:09]} 2. c4 {[%emt 0:00:38]} e6 {[%emt 0:00:04]} 3. Nf3 {[%emt 0:01:06]} d5 {[%emt 0:00:36]} 4. Nc3 {[%emt 0:00:28]} Bb4 {[%emt 0:00:16]} 5. Qa4+ {[%emt 0:04:29]} Nc6 {[%emt 0:00:06]} 6. a3 {[%emt 0:00:16]} Bxc3+ {[%emt 0:00:22]} 7. bxc3 {[%emt 0:00:05]} Ne4 {[%emt 0:01:14]} 8. Bf4 {[%emt 0:00:06]} O-O {[%emt 0:02:58]} 9. h4 {[%emt 0:02:43]} h6 {[%emt 0:03:08]} 10. e3 {[%emt 0:05:30]} Bd7 {[%emt 0:00:47]} 11. Qc2 {[%emt 0:00:19]} Na5 {[%emt 0:03:00]} 12. Bd3 {[%emt 0:06:47]} c5 {[%emt 0:01:46]} 13. Ne5 {[%emt 0:05:58]} Rc8 {[%emt 0:04:25]} 14. Rd1 {[%emt 0:31:24]} Be8 {[%emt 0:25:33]} 15. cxd5 {[%emt 0:11:06]} exd5 {[%emt 0:00:17]} 16. Bxe4 {[%emt 0:07:09]} dxe4 {[%emt 0:00:02]} 17. dxc5 {[%emt 0:00:22]} Qe7 {[%emt 0:05:14]} 18. Qxe4 {[%emt 0:01:09]} Rxc5 {[%emt 0:11:15]} 19. Qd4 {[%emt 0:00:57]} b6 {[%emt 0:08:25]} 20. Nd3 {[%emt 0:04:18]} Rc4 {[%emt 0:02:43]} 21. Bd6 {[%emt 0:00:21]} Qb7 {[%emt 0:01:07]} 22. Qe5 {[%emt 0:00:05]} f6 {[%emt 0:07:30]} 23. Qg3 {[%emt 0:00:02]} Rf7 {[%emt 0:00:56]} 24. O-O {[%emt 0:00:22]} Rc8 {[%emt 0:10:21]} 25. Nf4 {[%emt 0:02:31]} Nc4 {[%emt 0:00:31]} 26. Rd4 {[%emt 0:01:16]} Rd7 {[%emt 0:07:08]} 27. Rfd1 {[%emt 0:00:27]} Rxd6 {[%emt 0:00:34]} 28. Rxd6 {[%emt 0:00:07]} Nxd6 {[%emt 0:00:03]} 29. Rxd6 {[%emt 0:00:05]} Rc6 {[%emt 0:02:32]} 30. Qf3 {[%emt 0:00:05]} Rc7 {[%emt 0:00:47]} 31. Qg4 {[%emt 0:05:12]} Qc8 {[%emt 0:00:39]} 32. Qg3 {[%emt 0:00:05]} Kh7 {[%emt 0:00:49]} 33. Nd5 {[%emt 0:05:48]} Rf7 {[%emt 0:00:02]} 34. e4 {[%emt 0:01:13]} Bc6 {[%emt 0:00:29]} 35. h5 {[%emt 0:00:25]} Bxd5 {[%emt 0:00:20]} 36. Rxd5 {[%emt 0:00:29]} Kg8 {[%emt 0:00:55]} 37. Qd3 {[%emt 0:00:05]} Qe6 {[%emt 0:01:20]} 38. c4 {[%emt 0:01:53]} Re7 {[%emt 0:00:17]} 39. f3 {[%emt 0:02:19]} Re8 {[%emt 0:00:04]} 40. Rd7 {[%emt 0:00:00]} Qe5 {[%emt 0:00:00]} 41. Qd5+ {[%emt 0:07:03]} Kh7 {[%emt 0:01:19]} 42. Qf7 {[%emt 0:02:01]} Rg8 {[%emt 0:00:01]} 43. Rxa7 {[%emt 0:00:53]} Qg5 {[%emt 0:02:50]} 44. Qd5 {[%emt 0:06:07]} Qe3+ {[%emt 0:01:01]} 45. Kh2 {[%emt 0:00:20]} Qe1 {[%emt 0:00:08]} 46. Kh3 {[%emt 0:01:10]} 1-0

[Event "Reykjavik Open 2022"]
[Site "Reykjavik"]
[Date "2022.04.08"]
[Round "4.4"]
[White "Adhiban, B.."]
[Black "Peng, Li Min"]
[Result "1/2-1/2"]
[ECO "D31"]
[WhiteElo "2648"]
[BlackElo "2498"]
[Annotator "RC"]
[PlyCount "67"]
[EventDate "2022.04.06"]
[EventCountry "ISL"]
[SourceTitle "playchess.com"]
[Source "ChessBase"]
[SourceQuality "1"]
[TimeControl "40/5400+30:1800+30"]

1. c4 {[%emt 0:00:06]} e6 {[%emt 0:00:25]} 2. Nc3 {[%emt 0:01:08]} d5 {[%emt 0:00:34]} 3. d4 {[%emt 0:00:22]} a6 {[%emt 0:00:52]} 4. cxd5 {[%emt 0:01:13]} exd5 {[%emt 0:00:06]} 5. Nf3 {[%emt 0:02:03]} h6 {[%emt 0:00:17]} 6. Bf4 {[%emt 0:01:30]} Nf6 {[%emt 0:00:15]} 7. e3 {[%emt 0:00:47]} Bd6 {[%emt 0:00:12]} 8. Bxd6 {[%emt 0:06:19]} Qxd6 {[%emt 0:00:06]} 9. Bd3 {[%emt 0:00:02]} O-O {[%emt 0:01:24]} 10. h3 {[%emt 0:07:13]} Nc6 {[%emt 0:00:18]} 11. Rc1 {[%emt 0:02:04]} Ne7 {[%emt 0:00:49]} 12. Qc2 {[%emt 0:01:25]} g6 {[%emt 0:00:06]} 13. Ne2 {[%emt 0:00:04]} c6 {[%emt 0:00:21]} 14. Ng3 {[%emt 0:02:05]} b6 {[%emt 0:02:16]} 15. O-O {[%emt 0:00:58]} Bb7 {[%emt 0:02:30]} 16. e4 {[%emt 0:07:47]} dxe4 {[%emt 0:00:19]} 17. Nxe4 {[%emt 0:00:02]} Nxe4 {[%emt 0:00:25]} 18. Bxe4 {[%emt 0:00:01]} a5 {[%emt 0:16:13]} 19. Rfd1 {[%emt 0:05:32]} Nd5 {[%emt 0:28:32]} 20. Ne5 {[%emt 0:03:14]} Kg7 {[%emt 0:00:28]} 21. a3 {[%emt 0:03:14]} Rac8 {[%emt 0:01:45]} 22. Qb3 {[%emt 0:16:12]} Rfe8 {[%emt 0:00:36]} 23. Nc4 {[%emt 0:09:10]} Qf6 {[%emt 0:00:12]} 24. Bf3 {[%emt 0:00:58]} Ba6 {[%emt 0:05:34]} 25. Ne5 {[%emt 0:04:41]} Red8 {[%emt 0:03:00]} 26. Rc2 {[%emt 0:04:04]} Qd6 {[%emt 0:02:13]} 27. Rcc1 {[%emt 0:12:44]} h5 {[%emt 0:00:52]} 28. Rd2 {[%emt 0:01:11]} f6 {[%emt 0:01:50]} 29. Nc4 {[%emt 0:01:43]} Bxc4 {[%emt 0:00:02]} 30. Qxc4 {[%emt 0:00:06]} b5 {[%emt 0:00:17]} 31. Qc5 {[%emt 0:00:32]} a4 {[%emt 0:00:23]} 32. Rdc2 {[%emt 0:00:38]} Ne7 {[%emt 0:00:18]} 33. Rd1 {[%emt 0:05:28]} Nf5 {[%emt 0:00:02]} 34. Rcd2 {[%emt 0:00:45]} 1/2-1/2

[Event "Reykjavik Open 2022"]
[Site "Reykjavik"]
[Date "2022.04.08"]
[Round "4.5"]
[White "Stefansson, Vignir Vatnar"]
[Black "Sadhwani, Raunak"]
[Result "1/2-1/2"]
[ECO "B30"]
[WhiteElo "2484"]
[BlackElo "2616"]
[Annotator "RC"]
[PlyCount "109"]
[EventDate "2022.04.06"]
[EventCountry "ISL"]
[SourceTitle "playchess.com"]
[Source "ChessBase"]
[SourceQuality "1"]
[TimeControl "40/5400+30:1800+30"]

1. e4 {[%emt 0:01:35]} c5 {[%emt 0:00:15]} 2. Nf3 {[%emt 0:01:16]} Nc6 {[%emt 0:00:04]} 3. Bb5 {[%emt 0:02:22]} e6 {[%emt 0:02:02]} 4. Bxc6 {[%emt 0:00:31]} bxc6 {[%emt 0:00:17]} 5. e5 {[%emt 0:00:56]} f6 {[%emt 0:08:41]} 6. O-O {[%emt 0:01:49]} fxe5 {[%emt 0:01:57]} 7. Nxe5 {[%emt 0:00:53]} Nf6 {[%emt 0:00:06]} 8. Re1 {[%emt 0:03:39]} Be7 {[%emt 0:14:24]} 9. b3 {[%emt 0:02:24]} Qc7 {[%emt 0:03:20]} 10. Bb2 {[%emt 0:03:39]} O-O {[%emt 0:04:22]} 11. Ng4 {[%emt 0:07:39]} Ne8 {[%emt 0:05:09]} 12. c4 {[%emt 0:11:54]} d6 {[%emt 0:03:57]} 13. d4 {[%emt 0:03:13]} cxd4 {[%emt 0:00:58]} 14. Qxd4 {[%emt 0:01:01]} e5 {[%emt 0:01:09]} 15. Qd1 {[%emt 0:00:09]} Bh4 {[%emt 0:02:02]} 16. Rf1 {[%emt 0:06:25]} Qb6 {[%emt 0:08:10]} 17. Nc3 {[%emt 0:18:44]} h5 {[%emt 0:13:09]} 18. Ne3 {[%emt 0:04:19]} Bxf2+ {[%emt 0:00:18]} 19. Rxf2 {[%emt 0:00:04]} Qxe3 {[%emt 0:00:05]} 20. Qe2 {[%emt 0:00:14]} Qxf2+ {[%emt 0:00:16]} 21. Qxf2 {[%emt 0:00:04]} Rxf2 {[%emt 0:00:04]} 22. Kxf2 {[%emt 0:00:05]} c5 {[%emt 0:01:24]} 23. Rd1 {[%emt 0:02:52]} Kf7 {[%emt 0:00:16]} 24. Ba3 {[%emt 0:07:00]} Ba6 {[%emt 0:05:25]} 25. Ne4 {[%emt 0:02:39]} Ke7 {[%emt 0:00:49]} 26. b4 {[%emt 0:01:39]} Bxc4 {[%emt 0:02:23]} 27. bxc5 {[%emt 0:00:11]} d5 {[%emt 0:01:58]} 28. Nd2 {[%emt 0:00:09]} Bxa2 {[%emt 0:06:00]} 29. Ra1 {[%emt 0:02:45]} Bc4 {[%emt 0:00:18]} 30. Nxc4 {[%emt 0:00:16]} dxc4 {[%emt 0:00:06]} 31. Rc1 {[%emt 0:04:00]} Kd7 {[%emt 0:01:02]} 32. Rxc4 {[%emt 0:00:12]} Kc6 {[%emt 0:00:09]} 33. g4 {[%emt 0:02:22]} Kd5 {[%emt 0:05:16]} 34. Ra4 {[%emt 0:00:18]} hxg4 {[%emt 0:00:10]} 35. Rxg4 {[%emt 0:00:46]} a5 {[%emt 0:01:09]} 36. Rg6 {[%emt 0:04:11]} Kc4 {[%emt 0:02:48]} 37. Bb2 {[%emt 0:02:03]} Kxc5 {[%emt 0:01:13]} 38. Bxe5 {[%emt 0:00:04]} a4 {[%emt 0:00:10]} 39. h4 {[%emt 0:02:08]} a3 {[%emt 0:02:20]} 40. h5 {[%emt 0:00:00]} a2 {[%emt 0:00:00]} 41. h6 {[%emt 0:00:25]} gxh6 {[%emt 0:00:43]} 42. Rxh6 {[%emt 0:00:03]} Nc7 {[%emt 0:00:12]} 43. Ba1 {[%emt 0:01:55]} Rb8 {[%emt 0:03:37]} 44. Rh7 {[%emt 0:00:11]} Kd6 {[%emt 0:04:34]} 45. Rh4 {[%emt 0:02:01]} Rb1 {[%emt 0:01:17]} 46. Bh8 {[%emt 0:00:19]} Rc1 {[%emt 0:01:08]} 47. Ra4 {[%emt 0:00:52]} Rc2+ {[%emt 0:00:05]} 48. Ke3 {[%emt 0:01:05]} Rh2 {[%emt 0:01:06]} 49. Ba1 {[%emt 0:01:21]} Kc5 {[%emt 0:00:37]} 50. Kd3 {[%emt 0:01:07]} Kb5 {[%emt 0:00:17]} 51. Ra7 {[%emt 0:02:42]} Nd5 {[%emt 0:00:26]} 52. Rb7+ {[%emt 0:01:14]} Ka4 {[%emt 0:01:19]} 53. Kc4 {[%emt 0:00:34]} Ne3+ {[%emt 0:00:03]} 54. Kd3 {[%emt 0:00:14]} Nc2 {[%emt 0:00:48]} 55. Bc3 {[%emt 0:01:28]} 1/2-1/2

[Event "Reykjavik Open 2022"]
[Site "Reykjavik"]
[Date "2022.04.08"]
[Round "4.6"]
[White "Praggnanandhaa R"]
[Black "Laurent-Paoli, Pierre"]
[Result "1-0"]
[ECO "D38"]
[WhiteElo "2612"]
[BlackElo "2483"]
[Annotator "RC"]
[PlyCount "61"]
[EventDate "2022.04.06"]
[EventCountry "ISL"]
[SourceTitle "playchess.com"]
[Source "ChessBase"]
[SourceQuality "1"]
[TimeControl "40/5400+30:1800+30"]

1. d4 {[%emt 0:00:28]} Nf6 {[%emt 0:04:48]} 2. c4 {[%emt 0:00:06]} e6 {[%emt 0:02:11]} 3. Nf3 {[%emt 0:00:06]} d5 {[%emt 0:03:45]} 4. Nc3 {[%emt 0:00:10]} Bb4 {[%emt 0:00:46]} 5. Qa4+ {[%emt 0:00:11]} Nc6 {[%emt 0:00:08]} 6. e3 {[%emt 0:00:05]} O-O {[%emt 0:00:38]} 7. Qc2 {[%emt 0:00:14]} dxc4 {[%emt 0:10:16]} 8. Bxc4 {[%emt 0:00:37]} Bd6 {[%emt 0:01:18]} 9. O-O {[%emt 0:08:04]} e5 {[%emt 0:07:19]} 10. h3 {[%emt 0:00:36]} a6 {[%emt 0:02:33]} 11. dxe5 {[%emt 0:12:09]} Nxe5 {[%emt 0:01:09]} 12. Nxe5 {[%emt 0:00:07]} Bxe5 {[%emt 0:00:04]} 13. Bd2 {[%emt 0:00:58]} Qe7 {[%emt 0:13:21]} 14. f4 {[%emt 0:18:01]} Bxc3 {[%emt 0:01:14]} 15. Bxc3 {[%emt 0:00:16]} Qxe3+ {[%emt 0:15:04]} 16. Kh2 {[%emt 0:02:01]} Qb6 {[%emt 0:08:09]} 17. Rf3 {[%emt 0:11:17]} Qc6 {[%emt 0:05:00]} 18. Bd3 {[%emt 0:12:28]} h6 {[%emt 0:00:35]} 19. Rd1 {[%emt 0:00:57]} Re8 {[%emt 0:01:46]} 20. Qb1 {[%emt 0:07:12]} Be6 {[%emt 0:03:50]} 21. Bxf6 {[%emt 0:01:29]} gxf6 {[%emt 0:00:28]} 22. Be4 {[%emt 0:01:21]} Qb5 {[%emt 0:02:30]} 23. Rg3+ {[%emt 0:05:17]} Kh8 {[%emt 0:00:57]} 24. f5 {[%emt 0:02:21]} Bc4 {[%emt 0:02:47]} 25. Qc1 {[%emt 0:02:03]} Kh7 {[%emt 0:00:03]} 26. Rd4 {[%emt 0:00:07]} Be2 {[%emt 0:07:04]} 27. Bd3 {[%emt 0:01:11]} Qe5 {[%emt 0:01:43]} 28. Rh4 {[%emt 0:00:24]} h5 {[%emt 0:00:18]} 29. Bxe2 {[%emt 0:00:15]} Qxe2 {[%emt 0:00:05]} 30. Qc4 {[%emt 0:00:52]} Qxc4 {[%emt 0:01:18]} 31. Rxh5# {[%emt 0:00:02]} 1-0

[Event "Reykjavik Open 2022"]
[Site "Reykjavik"]
[Date "2022.04.08"]
[Round "4.7"]
[White "Warmerdam, Max"]
[Black "Clarke, Brandon G I"]
[Result "1/2-1/2"]
[ECO "A16"]
[WhiteElo "2607"]
[BlackElo "2430"]
[Annotator "RC"]
[PlyCount "36"]
[EventDate "2022.04.06"]
[EventCountry "ISL"]
[SourceTitle "playchess.com"]
[Source "ChessBase"]
[SourceQuality "1"]
[TimeControl "40/5400+30:1800+30"]

1. Nf3 {[%emt 0:00:04]} Nf6 {[%emt 0:00:34]} 2. c4 {[%emt 0:00:06]} g6 {[%emt 0:00:16]} 3. Nc3 {[%emt 0:00:08]} Bg7 {[%emt 0:00:43]} 4. e4 {[%emt 0:00:06]} e5 {[%emt 0:00:22]} 5. Nxe5 {[%emt 0:01:29]} O-O {[%emt 0:00:05]} 6. f4 {[%emt 0:01:34]} d6 {[%emt 0:12:53]} 7. Nf3 {[%emt 0:00:35]} Nxe4 {[%emt 0:01:24]} 8. Nxe4 {[%emt 0:00:06]} Re8 {[%emt 0:00:16]} 9. d3 {[%emt 0:00:06]} f5 {[%emt 0:00:11]} 10. Be2 {[%emt 0:00:05]} fxe4 {[%emt 0:00:05]} 11. dxe4 {[%emt 0:00:04]} c6 {[%emt 0:03:07]} 12. Bd3 {[%emt 0:34:03]} Qb6 {[%emt 0:07:32]} 13. Qe2 {[%emt 0:07:59]} Na6 {[%emt 0:01:48]} 14. Rb1 {[%emt 0:10:01]} Nc5 {[%emt 0:07:12]} 15. Be3 {[%emt 0:13:31]} Qb4+ {[%emt 0:16:03]} 16. Bd2 {[%emt 0:01:33]} Qb6 {[%emt 0:00:34]} 17. Be3 {[%emt 0:05:50]} Qb4+ {[%emt 0:05:18]} 18. Bd2 {[%emt 0:00:25]} Qb6 {[%emt 0:00:56]} 1/2-1/2